lending/lending_fUSD_20251022
["ID","MTS","AMOUNT","RATE_DAILY","PERIOD"]
[392065895,1761135071199,-500.0,0.00044383,120]
[392065896,1761135071208,-566.14502214,0.00044383,120]
[392065897,1761135071217,-3416.35,0.00044383,120]
[392065898,1761135071227,-1014.34,0.00044383,120]
[392065899,1761135071237,-2315.89,0.00044383,120]
[392065900,1761135071247,-500.0,0.00044383,120]
[392065901,1761135071256,-1060.51,0.00044383,120]
[392065902,1761135071265,-1034.07,0.00044383,120]
[392065903,1761135071274,-500.0,0.00044383,120]
[392065904,1761135071284,-500.0,0.00044383,120]
[392065905,1761135071294,-500.0,0.00044383,120]
[392065906,1761135071303,-601.42165432,0.00044383,120]
[392065907,1761135071313,-1194.3,0.00044383,120]
[392065908,1761135071323,-500.0,0.00044383,120]
[392065909,1761135071333,-1919.39,0.00044383,120]
[392065910,1761135071343,-500.0,0.00044383,120]
[392065911,1761135071354,-873.11,0.00044383,120]
[392065912,1761135071364,-500.0,0.00044383,120]
[392065913,1761135071374,-212.90331921,0.00044383,120]
[392065914,1761135071383,-500.0,0.00044383,120]
[392065915,1761135071394,-500.0,0.00044383,120]
[392065916,1761135071404,-500.0,0.00044383,120]
[392065917,1761135071413,-500.0,0.00044383,120]
[392065918,1761135071423,-1274.68,0.00044383,120]
[392065919,1761135071432,-1817.54,0.00044383,120]
[392065920,1761135071442,-500.0,0.00044383,120]
[392065921,1761135071451,-1257.59,0.00044383,120]
[392065922,1761135071461,-587.22,0.00044383,120]
[392065923,1761135071470,-500.0,0.00044383,120]
[392065924,1761135071480,-500.0,0.00044383,120]
[392065925,1761135071491,-500.0,0.00044383,120]
[392065926,1761135071500,-500.0,0.00044383,120]
[392065927,1761135071510,-500.0,0.00044383,120]
[392065928,1761135071520,-500.0,0.00044383,120]
[392065929,1761135071530,-500.0,0.00044383,120]
[392065930,1761135071540,-2295.09,0.00044383,120]
[392065931,1761135071550,-500.0,0.00044383,120]
[392065932,1761135071559,-500.0,0.00044383,120]
[392065933,1761135071568,-500.0,0.00044383,120]
[392065934,1761135071578,-500.0,0.00044383,120]
[392065935,1761135071588,-500.0,0.00044383,120]
[392065936,1761135071600,-657.01,0.00044383,120]
[392065937,1761135071609,-500.0,0.00044383,120]
[392065938,1761135071619,-500.0,0.00044383,120]
[392065939,1761135071628,-500.0,0.00044383,120]
[392065940,1761135071637,-500.0,0.00044383,120]
[392065941,1761135071647,-1185.63,0.00044383,120]
[392065942,1761135071657,-697.37,0.00044383,120]
[392065943,1761135071667,-868.7,0.00044383,120]
[392065944,1761135071677,-892.35,0.00044383,120]
[392065945,1761135071688,-500.0,0.00044383,120]
[392065946,1761135071698,-504.6212181,0.00044383,120]
[392065947,1761135071707,-500.0,0.00044383,120]
[392065948,1761135071717,-966.14,0.00044383,120]
[392065949,1761135071727,-500.0,0.00044383,120]
[392065950,1761135071737,-1949.32,0.00044383,120]
[392065951,1761135071748,-500.0,0.00044383,120]
[392065952,1761135071758,-500.0,0.00044383,120]
[392065953,1761135071767,-500.0,0.00044383,120]
[392065954,1761135071777,-500.0,0.00044383,120]
[392065955,1761135071787,-998.9,0.00044383,120]
[392065956,1761135071796,-500.0,0.00044383,120]
[392065957,1761135071806,-500.0,0.00044383,120]
[392065958,1761135071816,-457.49154673,0.00044383,120]
[392065959,1761135071825,-500.0,0.00044383,120]
[392065960,1761135071835,-500.0,0.00044383,120]
[392065961,1761135071844,-500.0,0.00044383,120]
[392065962,1761135071855,-500.0,0.00044383,120]
[392065963,1761135071864,-500.0,0.00044383,120]
[392065964,1761135071874,-559.71080276,0.00044383,120]
[392065965,1761135071883,-552.68234819,0.00044383,120]
[392065966,1761135071892,-500.0,0.00044383,120]
[392065967,1761135071902,-641.15,0.00044383,120]
[392065968,1761135071917,-554.16,0.00044383,120]
[392065969,1761135071927,-500.0,0.00044383,2]
[392065970,1761135071936,-604.8946529,0.00044383,120]
[392065971,1761135071947,-500.0,0.00044383,120]
[392065972,1761135071961,-500.0,0.00044383,120]
[392065973,1761135071971,-500.0,0.00044383,120]
[392065974,1761135071981,-218.61485421,0.00044383,120]
[392065975,1761135071991,-500.0,0.00044383,16]
[392065976,1761135072002,-500.0,0.00044383,120]
[392065977,1761135072011,-500.0,0.00044383,120]
[392065978,1761135072021,-4249.64,0.00044383,30]
[392065979,1761135072033,-8039.99,0.00044383,120]
[392065980,1761135072042,-500.0,0.00044383,120]
[392065981,1761135072052,-413.27823054,0.00044383,120]
[392065982,1761135072061,-500.0,0.00044383,120]
[392065983,1761135072071,-500.0,0.00044383,120]
[392065984,1761135072081,-500.0,0.00044383,120]
[392065985,1761135072091,-1000.0,0.00044383,120]
[392065986,1761135072102,-500.0,0.00044383,120]
[392065987,1761135072111,-269.9882696,0.00044383,120]
[392065988,1761135072121,-500.0,0.00044383,120]
[392065989,1761135072130,-500.0,0.00044383,120]
[392065990,1761135072141,-511.03318376,0.00044383,120]
[392065991,1761135072151,-556.61,0.00044383,120]
[392065992,1761135072161,-500.0,0.00044383,120]
[392065993,1761135072170,-500.0,0.00044383,2]
[392065994,1761135072180,-500.0,0.00044383,120]
[392065995,1761135072190,-1731.38,0.00044383,120]
[392065996,1761135072200,-314.25286213,0.00044383,120]
[392065997,1761135072209,-500.0,0.00044383,120]
[392065998,1761135072220,-500.0,0.00044383,120]
[392065999,1761135072231,-500.0,0.00044383,120]
[392066000,1761135072240,-964.29,0.00044383,120]
[392066001,1761135072250,-500.0,0.00044383,120]
[392066002,1761135072260,-10625.73,0.00044383,14]
[392066003,1761135072270,-500.0,0.00044383,120]
[392066004,1761135072279,-500.0,0.00044383,120]
[392066005,1761135072289,-500.0,0.00044383,120]
[392066006,1761135072300,-341.18785061,0.00044383,120]
[392066007,1761135072310,-500.0,0.00044383,120]
[392066008,1761135072320,-500.0,0.00044383,120]
[392066009,1761135072330,-500.0,0.00044383,120]
[392066010,1761135072342,-500.0,0.00044383,120]
[392066011,1761135072353,-500.0,0.00044383,120]
[392066012,1761135072362,-500.0,0.00044383,120]
[392066013,1761135072372,-500.0,0.00044383,120]
[392066014,1761135072382,-500.0,0.00044383,90]
[392066015,1761135072393,-500.0,0.00044383,120]
[392066016,1761135072405,-500.0,0.00044383,120]
[392066017,1761135072415,-2209.9,0.00044383,120]
[392066018,1761135072425,-500.0,0.00044383,120]
[392066019,1761135072435,-500.0,0.00044383,120]
[392066020,1761135072445,-500.0,0.00044383,120]
[392066021,1761135072455,-545.58130158,0.00044383,120]
[392066022,1761135072464,-1033.69,0.00044383,120]
[392066023,1761135072473,-500.0,0.00044383,120]
[392066024,1761135072484,-500.0,0.00044383,120]
[392066025,1761135072493,-582.14,0.00044383,120]
[392066026,1761135072504,-500.0,0.00044383,120]
[392066027,1761135072514,-1687.59,0.00044383,120]
[392066028,1761135072524,-500.0,0.00044383,120]
[392066029,1761135072534,-1271.93,0.00044383,120]
[392066030,1761135072544,-500.0,0.00044383,120]
[392066031,1761135072554,-1740.94,0.00044383,120]
[392066032,1761135072563,-500.0,0.00044383,120]
[392066033,1761135072574,-1064.16,0.00044383,120]
[392066034,1761135072583,-1934.23,0.00044383,120]
[392066035,1761135072593,-703.4,0.00044383,120]
[392066036,1761135072604,-500.0,0.00044383,120]
[392066037,1761135072614,-500.0,0.00044383,2]
[392066038,1761135072623,-694.75,0.00044383,120]
[392066039,1761135072632,-306.97406144,0.00044383,120]
[392066040,1761135072642,-500.0,0.00044383,120]
[392066041,1761135072651,-500.0,0.00044383,120]
[392066042,1761135072660,-500.0,0.00044383,3]
[392066043,1761135072669,-500.0,0.00044383,120]
[392066044,1761135072679,-1460.92,0.00044383,120]
[392066045,1761135072688,-602.60151585,0.00044383,120]
[392066046,1761135072697,-500.0,0.00044383,120]
[392066047,1761135072707,-625.08,0.00044383,120]
[392066048,1761135072717,-500.0,0.00044383,120]
[392066049,1761135072726,-500.0,0.00044383,120]
[392066050,1761135072736,-500.0,0.00044383,120]
[392066051,1761135072745,-500.0,0.00044383,120]
[392066052,1761135072755,-1203.55,0.00044383,120]
[392066053,1761135072765,-500.0,0.00044383,120]
[392066054,1761135072774,-500.0,0.00044383,120]
[392066055,1761135072786,-927.76,0.00044383,120]
[392066056,1761135072795,-500.0,0.00044383,120]
[392066057,1761135072805,-500.0,0.00044383,120]
[392066058,1761135072815,-1323.49,0.00044383,120]
[392066059,1761135072824,-500.0,0.00044383,120]
[392066060,1761135072833,-500.0,0.00044383,120]
[392066061,1761135072842,-779.68,0.00044383,120]
[392066062,1761135072851,-500.0,0.00044383,120]
[392066063,1761135072860,-1333.63,0.00044383,120]
[392066064,1761135072870,-3131.71,0.00044383,120]
[392066065,1761135072881,-500.0,0.00044383,120]
[392066066,1761135072890,-500.0,0.00044383,120]
[392066067,1761135072902,-649.38,0.00044383,120]
[392066068,1761135072917,-504.59684651,0.00044383,120]
[392066069,1761135072928,-500.0,0.00044383,120]
[392066070,1761135072938,-1608.24,0.00044383,120]
[392066071,1761135072950,-500.0,0.00044383,120]
[392066072,1761135072961,-500.0,0.00044383,120]
[392066073,1761135072971,-500.0,0.00044383,120]
[392066074,1761135072982,-457.65199213,0.00044383,120]
[392066075,1761135072993,-565.31,0.00044383,120]
[392066076,1761135073003,-351.60957736,0.00044383,120]
[392066077,1761135073013,-423.00012271,0.00044383,120]
[392066078,1761135073023,-495.9293632,0.00044383,120]
[392066079,1761135073032,-684.58,0.00044383,120]
[392066080,1761135073042,-500.0,0.00044383,120]
[392066081,1761135073052,-500.0,0.00044383,120]
[392066082,1761135073062,-1472.23,0.00044383,120]
[392066083,1761135073072,-500.0,0.00044383,120]
[392066084,1761135073082,-500.0,0.00044383,120]
[392066085,1761135073092,-1337.7,0.00044383,120]
[392066086,1761135073227,-500.0,0.00044383,120]
[392066087,1761135073237,-500.0,0.00044383,120]
[392066088,1761135073248,-877.86,0.00044383,120]
[392066089,1761135073258,-325.00901521,0.00044383,120]
[392066090,1761135073268,-500.0,0.00044383,120]
[392066091,1761135073278,-500.0,0.00044383,120]
[392066092,1761135073288,-1310.08,0.00044383,120]
[392066093,1761135073298,-500.0,0.00044383,120]
[392066094,1761135073308,-500.0,0.00044383,120]
[392066095,1761135073318,-500.0,0.00044383,120]
[392066096,1761135073327,-501.0999118,0.00044383,120]
[392066097,1761135073336,-1168.48,0.00044383,120]
[392066098,1761135073346,-500.0,0.00044383,120]
[392066099,1761135073355,-500.0,0.00044383,120]
[392066100,1761135073366,-500.0,0.00044383,120]
[392066101,1761135073375,-510.49633694,0.00044383,120]
[392066102,1761135073384,-500.0,0.00044383,120]
[392066103,1761135073394,-500.0,0.00044383,120]
[392066104,1761135073406,-298.62066924,0.00044383,120]
[392066105,1761135073415,-1609.34,0.00044383,120]
[392066106,1761135073426,-527.79665727,0.00044383,120]
[392066107,1761135073435,-1017.37,0.00044383,120]
[392066108,1761135073445,-500.0,0.00044383,120]
[392066109,1761135073455,-2039.83,0.00044383,120]
[392066110,1761135073464,-500.0,0.00044383,120]
[392066111,1761135073474,-500.0,0.00044383,120]
[392066112,1761135073484,-500.0,0.00044383,120]
[392066113,1761135073494,-1575.77,0.00044383,120]
[392066114,1761135073504,-500.0,0.00044383,120]
[392066115,1761135073513,-501.33722063,0.000444,28]
[392066116,1761135073523,-733.4604765,0.000445,120]
[392066117,1761135073533,-1000.0,0.000445,2]
[392066118,1761135073543,-149105.33754252,0.000445,15]
[392066119,1761135073834,-3620.37823625,0.000445,15]
[392066120,1761135073846,-2506.7094199,0.000445,15]
[392066121,1761135073858,-1073.87974771,0.000445,15]
[392066122,1761135073870,-3158.92017496,0.000445,15]
[392066123,1761135073882,-4184.156181,0.000445,15]
[392066124,1761135073905,-256.04,0.00035044,2]
[392066125,1761135073918,-313594.78822138,0.000445,15]
[392066126,1761135073938,-1205.3551967,0.000445,15]
[392066127,1761135073951,-1077.0,0.000445,15]
[392066128,1761135073964,-1798.68670579,0.000445,15]
[392066129,1761135074286,-364.37265016,0.00039701,2]
[392066130,1761135074295,-500.0,0.00043835,120]
[392066131,1761135074305,-384.69406913,0.00044383,120]
[392066132,1761135074315,-500.0,0.00044383,120]
[392066133,1761135074324,-4185.88952089,0.000445,15]
[392066134,1761135075072,-313.23121037,0.00034502,2]
[392066135,1761135075083,-155.481707,0.00034602,30]
[392066136,1761135075093,-151.04,0.00041523,30]
[392066137,1761135075104,-413.94,0.00041523,30]
[392066138,1761135075113,-43.43776263,0.00043835,120]
[392066139,1761135075126,-445.5,0.00043835,120]
[392066140,1761135075137,-34.73223737,0.00043835,120]
[392066141,1761135075152,-523.67,0.00044109,120]
[392066142,1761135075162,-153.66541428,0.00044383,120]
[392066143,1761135075178,-370.00458572,0.00044383,120]
[392066144,1761135075188,-537.43491328,0.000445,15]
[392066145,1761135075199,-4207.60608706,0.000445,15]
[392066150,1761135674123,-161.61540878,0.00034615,120]
[392066151,1761135674150,-2477.21612923,0.00034615,120]
[392066152,1761135674180,-1183427.0,0.00034615,90]
[392066153,1761135674206,-2000.0,0.00034615,60]
[392066154,1761135674231,-501.05286745,0.00034615,60]
[392066155,1761135674259,-150.0,0.00034615,120]
[392066156,1761135674284,-300.0,0.00034615,120]
[392066157,1761135674309,-450.0,0.00034615,120]
[392066158,1761135674335,-600.0,0.00034615,120]
[392066159,1761135674360,-750.0,0.00034615,120]
[392066160,1761135674386,-900.0,0.00034615,120]
[392066161,1761135674413,-1050.0,0.00034615,120]
[392066162,1761135674438,-1200.0,0.00034615,120]
[392066163,1761135674463,-209.92198818,0.00034615,120]
[392066164,1761135674487,-200.0,0.00034615,120]
[392066165,1761135709797,-300.0,0.0002821,120]
[392066166,1761135709821,-300.0,0.0002821,120]
[392066167,1761135709846,-300.0,0.0002821,120]
[392066168,1761135709872,-300.0,0.0002821,120]
[392066169,1761135709897,-300.0,0.000297,120]
[392066170,1761135709923,-156.0,0.00031,120]
[392066171,1761135709953,-178.0,0.00032,120]
[392066172,1761135709979,-500.0,0.0003344,30]
[392066173,1761135710006,-153.0,0.00034029,90]
[392066174,1761135710030,-150.0,0.000343,60]
[392066175,1761135710056,-176.83312215,0.000344,120]
[392066176,1761135710080,-197.64581887,0.000344,120]
[392066177,1761135710104,-164.22574656,0.000344,120]
[392066178,1761135710129,-172.09471183,0.000344,120]
[392066179,1761135710153,-167.24346946,0.000344,120]
[392066180,1761135710182,-182.48250727,0.000344,120]
[392066181,1761135710207,-164.45723984,0.000344,120]
[392066182,1761135710232,-541.98058156,0.000344,120]
[392066183,1761135710258,-156.0,0.000345,120]
[392066184,1761135710282,-537.075,0.00034503,39]
[392066185,1761135710307,-155.395295,0.00034602,30]
[392066186,1761135710334,-231.28369723,0.00034689,30]
[392066187,1761135710359,-173.56,0.000347,30]
[392066188,1761135710383,-500.0,0.00035234,120]
[392066189,1761135710407,-541.98058156,0.000354,120]
[392066190,1761135710432,-200.0,0.00036,120]
[392066191,1761135710457,-150.0,0.00036098,120]
[392066192,1761135710481,-541.98058156,0.000365,120]
[392066193,1761135710505,-2073.555119,0.00036846,120]
[392066194,1761135710529,-500.0,0.00036846,120]
[392066195,1761135710554,-541.98058156,0.000375,120]
[392066196,1761135710582,-200.0,0.00038,120]
[392066197,1761135710607,-156.0,0.000381,120]
[392066198,1761135710632,-173.56,0.000382,30]
[392066199,1761135710657,-541.98058156,0.000387,120]
[392066200,1761135710681,-179.59,0.00039,60]
[392066201,1761135710708,-40000.0,0.00039999,40]
[392066202,1761135710731,-2500.0,0.0004,120]
[392066203,1761135710754,-2500.0,0.0004,120]
[392066204,1761135710778,-300.0,0.0004,120]
[392066205,1761135710802,-2500.0,0.0004,120]
[392066206,1761135710826,-2499.99,0.0004,120]
[392066207,1761135710851,-2500.0,0.0004,120]
[392066208,1761135710876,-694.12283924,0.00040049,120]
[392066209,1761135710901,-2500.0,0.000405,120]
[392066210,1761135710925,-2500.0,0.000405,120]
[392066211,1761135710952,-50000.0,0.00041,41]
[392066212,1761135710976,-2500.0,0.00041,120]
[392066213,1761135710999,-150.0,0.00041,90]
[392066214,1761135711023,-50000.0,0.00041096,120]
[392066215,1761135711046,-2500.0,0.000415,120]
[392066216,1761135711071,-223.0315306,0.00041522,30]
[392066217,1761135711306,-573.31,0.00041523,30]
[392066218,1761135711332,-150.0,0.00041523,30]
[392066219,1761135711355,-226.4,0.00041523,30]
[392066220,1761135711382,-150.0,0.00041523,30]
[392066221,1761135711406,-176.18,0.00041523,30]
[392066222,1761135711431,-336.7,0.00041523,30]
[392066223,1761135711454,-151.85,0.00041523,30]
[392066224,1761135711479,-413.94,0.00041523,30]
[392066225,1761135711504,-156.0,0.000416,120]
[392066226,1761135711529,-173.56,0.000416,30]
[392066227,1761135711553,-500.0,0.00041615,120]
[392066228,1761135711579,-50000.0,0.00042,42]
[392066229,1761135711605,-2500.0,0.00042,120]
[392066230,1761135711631,-300.0,0.00042,120]
[392066231,1761135711655,-243.04,0.00042,30]
[392066232,1761135711679,-694.12283924,0.00042453,120]
[392066233,1761135711704,-828.45,0.000425,120]
[392066234,1761135711729,-1449.0,0.000425,120]
[392066235,1761135711754,-2500.0,0.000425,120]
[392066236,1761135711779,-150.0,0.00042583,120]
[392066237,1761135711809,-150.0,0.00042757,120]
[392066238,1761135711834,-500.0,0.00042856,60]
[392066239,1761135711858,-500.0,0.00042856,60]
[392066240,1761135711884,-150.0,0.00042876,120]
[392066241,1761135711911,-50000.0,0.00043,43]
[392066242,1761135711936,-2500.0,0.00043,120]
[392066243,1761135711961,-191.0,0.00043,90]
[392066244,1761135711984,-150.0,0.00043151,90]
[392066245,1761135712009,-700.52,0.00043456,30]
[392066246,1761135712036,-2500.0,0.000435,120]
[392066247,1761135712060,-2139.08,0.00043585,120]
[392066248,1761135712085,-891.86,0.00043585,120]
[392066249,1761135712110,-917.37,0.00043585,120]
[392066250,1761135712137,-3058.36601484,0.00043585,120]
[392066251,1761135712163,-2116.27,0.0004375,120]
[392066252,1761135712191,-500.0,0.00043834,120]
[392066253,1761135712217,-500.0,0.00043835,120]
[392066254,1761135712242,-853.63,0.00043835,120]
[392066255,1761135712269,-500.0,0.00043835,120]
[392066256,1761135712294,-500.0,0.00043835,120]
[392066257,1761135712319,-1060.64,0.00043835,120]
[392066258,1761135712344,-500.0,0.00043835,120]
[392066259,1761135712370,-1341.33,0.00043835,120]
[392066260,1761135712400,-500.0,0.00043835,120]
[392066261,1761135712425,-500.0,0.00043835,120]
[392066262,1761135712448,-549.97150857,0.00043835,120]
[392066263,1761135712472,-500.0,0.00043835,120]
[392066264,1761135712497,-1495.03,0.00043835,120]
[392066265,1761135712521,-357.50644849,0.00043835,120]
[392066266,1761135712545,-500.0,0.00043835,120]
[392066267,1761135712569,-500.0,0.00043835,120]
[392066268,1761135712595,-558.23184733,0.00043835,120]
[392066269,1761135712619,-936.64,0.00043835,120]
[392066270,1761135712646,-500.0,0.00043835,120]
[392066271,1761135712671,-1086.29,0.00043835,120]
[392066272,1761135712695,-1664.75,0.00043835,120]
[392066273,1761135712722,-840.86,0.00043835,120]
[392066274,1761135712747,-524.28301639,0.00043835,120]
[392066275,1761135712773,-500.0,0.00043835,120]
[392066276,1761135712799,-500.0,0.00043835,120]
[392066277,1761135712824,-500.0,0.00043835,120]
[392066278,1761135712848,-1662.58,0.00043835,120]
[392066279,1761135712874,-1687.46,0.00043835,120]
[392066280,1761135712898,-500.0,0.00043835,120]
[392066281,1761135712922,-500.0,0.00043835,120]
[392066282,1761135712945,-213.38075167,0.00043835,60]
[392066283,1761135712970,-500.0,0.00043835,120]
[392066284,1761135712995,-500.0,0.00043835,120]
[392066285,1761135713019,-500.0,0.00043835,120]
[392066286,1761135713044,-1314.8,0.00043835,120]
[392066287,1761135713069,-1018.88,0.00043835,120]
[392066288,1761135713093,-940.87,0.00043835,120]
[392066289,1761135713119,-500.0,0.00043835,120]
[392066290,1761135713144,-500.0,0.00043835,120]
[392066291,1761135713171,-500.0,0.00043835,120]
[392066292,1761135713201,-1340.18,0.00043835,120]
[392066293,1761135713227,-1306.15,0.00043835,120]
[392066294,1761135713252,-500.0,0.00043835,120]
[392066295,1761135713278,-500.0,0.00043835,120]
[392066296,1761135713305,-1019.91,0.00043835,120]
[392066297,1761135713330,-1857.86,0.00043835,120]
[392066298,1761135713356,-500.0,0.00043835,120]
[392066299,1761135713381,-1046.62,0.00043835,120]
[392066300,1761135713406,-1524.64,0.00043835,120]
[392066301,1761135713431,-445.47092332,0.00043835,120]
[392066302,1761135713455,-500.0,0.00043835,120]
[392066303,1761135713479,-500.0,0.00043835,120]
[392066304,1761135713504,-500.0,0.00043835,120]
[392066305,1761135713530,-500.0,0.00043835,120]
[392066306,1761135713555,-172.86913864,0.00043835,120]
[392066307,1761135713580,-500.0,0.00043835,120]
[392066308,1761135713605,-591.36,0.00043835,120]
[392066309,1761135713640,-1306.99,0.00043835,120]
[392066310,1761135713673,-500.0,0.00043835,60]
[392066311,1761135713705,-500.0,0.00043835,120]
[392066312,1761135713737,-943.68,0.00043835,120]
[392066313,1761135713769,-500.0,0.00043835,120]
[392066314,1761135713801,-500.0,0.00043835,120]
[392066315,1761135713833,-1238.79,0.00043835,120]
[392066316,1761135713863,-500.0,0.00043835,120]
[392066317,1761135713897,-500.0,0.00043835,120]
[392066318,1761135713929,-500.0,0.00043835,120]
[392066319,1761135713962,-500.0,0.00043835,120]
[392066320,1761135713994,-500.0,0.00043835,120]
[392066321,1761135714026,-509.15646036,0.00043835,120]
[392066322,1761135714059,-1070.04,0.00043835,120]
[392066323,1761135714091,-159.07480277,0.00043835,120]
[392066324,1761135714122,-210.74270281,0.00043835,120]
[392066325,1761135714153,-479.49008524,0.00043835,120]
[392066326,1761135714187,-500.0,0.00043835,120]
[392066327,1761135714220,-981.17,0.00043835,120]
[392066328,1761135714250,-813.58,0.00043835,120]
[392066329,1761135714278,-193.10984012,0.00043835,120]
[392066330,1761135714308,-500.0,0.00043835,120]
[392066331,1761135714342,-500.0,0.00043835,120]
[392066332,1761135714370,-500.0,0.00043835,120]
[392066333,1761135714398,-2000.86,0.00043835,120]
[392066334,1761135714430,-500.0,0.00043835,120]
[392066335,1761135714457,-500.0,0.00043835,120]
[392066336,1761135714485,-1065.48,0.00043835,120]
[392066337,1761135714513,-500.0,0.00043835,120]
[392066338,1761135714541,-500.0,0.00043835,120]
[392066339,1761135714570,-455.45307589,0.00043835,120]
[392066340,1761135714601,-548.57,0.00043835,120]
[392066341,1761135714630,-500.0,0.00043835,120]
[392066342,1761135714657,-500.0,0.00043835,120]
[392066343,1761135714685,-271.93776396,0.00043835,120]
[392066344,1761135714713,-1860.85,0.00043835,120]
[392066345,1761135714741,-500.0,0.00043835,120]
[392066346,1761135714768,-500.0,0.00043835,120]
[392066347,1761135714797,-151.2816168,0.00043835,120]
[392066348,1761135714825,-612.85217545,0.00043835,120]
[392066349,1761135714853,-500.0,0.00043835,120]
[392066350,1761135714883,-500.0,0.00043835,120]
[392066351,1761135714913,-562.72705055,0.00043835,120]
[392066352,1761135714943,-500.0,0.00043835,120]
[392066353,1761135714972,-500.0,0.00043835,120]
[392066354,1761135715013,-524.04304074,0.00043835,120]
[392066355,1761135715049,-500.0,0.00043835,120]
[392066356,1761135715083,-500.0,0.00043835,120]
[392066357,1761135715116,-652.14,0.00043835,120]
[392066358,1761135715147,-272.51,0.00043835,120]
[392066359,1761135715184,-500.0,0.00043835,120]
[392066360,1761135715219,-500.0,0.00043835,120]
[392066361,1761135715252,-381.88006357,0.00043835,120]
[392066362,1761135715283,-500.0,0.00043835,120]
[392066363,1761135715315,-500.0,0.00043835,120]
[392066364,1761135715347,-500.0,0.00043835,120]
[392066365,1761135715375,-169.18212604,0.00043835,120]
[392066366,1761135715413,-500.0,0.00043835,120]
[392066367,1761135715445,-500.0,0.00043835,120]
[392066368,1761135715475,-500.0,0.00043835,120]
[392066369,1761135715506,-500.0,0.00043835,120]
[392066370,1761135715537,-1160.59,0.00043835,120]
[392066371,1761135715569,-500.0,0.00043835,120]
[392066372,1761135715607,-500.0,0.00043835,120]
[392066373,1761135715638,-1155.13,0.00043835,120]
[392066374,1761135715667,-500.0,0.00043835,120]
[392066375,1761135715697,-153.56620149,0.00043835,120]
[392066376,1761135715727,-403.6819149,0.00043835,120]
[392066377,1761135715756,-500.0,0.00043835,120]
[392066378,1761135715786,-606.69616418,0.00043835,120]
[392066379,1761135715819,-500.0,0.00043835,120]
[392066380,1761135715849,-500.0,0.00043835,120]
[392066381,1761135715880,-606.25100542,0.00043835,120]
[392066382,1761135715912,-528.10009363,0.00043835,120]
[392066383,1761135715942,-233.82461612,0.00043835,120]
[392066384,1761135715971,-500.0,0.00043835,120]
[392066385,1761135716003,-500.0,0.00043835,120]
[392066386,1761135716036,-500.0,0.00043835,120]
[392066387,1761135716065,-630.1,0.00043835,120]
[392066388,1761135716095,-501.88,0.00043835,120]
[392066389,1761135716125,-500.0,0.00043835,120]
[392066390,1761135716156,-500.0,0.00043835,120]
[392066391,1761135716192,-1839.42,0.00043835,120]
[392066392,1761135716226,-500.0,0.00043835,120]
[392066393,1761135716264,-500.0,0.00043835,120]
[392066394,1761135716300,-1741.81,0.00043835,120]
[392066395,1761135716334,-500.0,0.00043835,120]
[392066396,1761135716366,-500.0,0.00043835,120]
[392066397,1761135716724,-500.0,0.00043835,120]
[392066398,1761135716763,-2199.46,0.00043835,120]